bitfinex/quotes_BTCUSD_20220101
["timestamp","ask_amount","ask_price","bid_price","bid_amount"]
[1641059776381,0.05385,47764.0,47763.0,0.62893871]
[1641059778836,0.04885,47764.0,47763.0,0.62893871]
[1641059779438,0.04885,47764.0,47763.0,0.89629571]
[1641059781793,0.04885,47764.0,47763.0,0.62893871]
[1641059782391,0.04885,47764.0,47763.0,0.89826336]
[1641059782592,0.04885,47764.0,47763.0,0.62893871]
[1641059784401,0.10471018,47765.0,47763.0,0.62893871]
[1641059784597,0.05,47764.0,47763.0,0.62893871]
[1641059784839,0.05,47764.0,47763.0,0.62884742]
[1641059787043,0.05,47764.0,47763.0,0.52884742]
[1641059788484,0.63293776,47764.0,47763.0,0.52884742]
[1641059788684,0.96986076,47764.0,47763.0,0.52884742]
[1641059788884,0.386923,47764.0,47763.0,0.52884742]
[1641059790088,0.40586718,47764.0,47763.0,0.52884742]
[1641059790590,0.6070756,47764.0,47763.0,0.52884742]
[1641059791087,0.62847228,47764.0,47763.0,0.52884742]
[1641059791287,0.6095281,47764.0,47763.0,0.52884742]
[1641059791491,0.90863579,47764.0,47763.0,0.52884742]
[1641059791887,1.43358804,47764.0,47763.0,0.52884742]
[1641059792087,1.80470171,47764.0,47763.0,0.52884742]
[1641059792345,0.98064177,47764.0,47763.0,0.52884742]
[1641059792940,1.76167518,47764.0,47763.0,0.52884742]
[1641059793140,1.78234761,47764.0,47763.0,0.52884742]
[1641059794043,1.80209774,47764.0,47763.0,0.52884742]
[1641059794242,1.78142531,47764.0,47763.0,0.52884742]
[1641059794643,1.7704156,47764.0,47763.0,0.52884742]
[1641059795040,1.78976017,47764.0,47763.0,0.52884742]
[1641059795241,1.77001004,47764.0,47763.0,0.52884742]
[1641059796087,1.78867287,47764.0,47763.0,0.52884742]
[1641059796287,1.7693283,47764.0,47763.0,0.52884742]
[1641059797187,1.79013451,47764.0,47763.0,0.52884742]
[1641059797390,1.77147168,47764.0,47763.0,0.52884742]
[1641059798088,1.79164554,47764.0,47763.0,0.52884742]
[1641059798288,1.77083933,47764.0,47763.0,0.52884742]
[1641059799091,1.79257695,47764.0,47763.0,0.52884742]
[1641059799288,1.77240309,47764.0,47763.0,0.52884742]
[1641059799492,1.77240309,47764.0,47763.0,0.52384742]
[1641059799961,1.42291927,47764.0,47763.0,0.52384742]
[1641059800159,1.44228761,47764.0,47763.0,0.52384742]
[1641059800759,1.44682043,47764.0,47763.0,0.52384742]
[1641059800958,1.40571447,47764.0,47763.0,0.52384742]
[1641059801159,1.42538778,47764.0,47763.0,0.52384742]
[1641059801958,1.42538778,47764.0,47763.0,0.51884742]
[1641059802157,1.44529555,47764.0,47763.0,0.51884742]
[1641059802359,1.42562224,47764.0,47763.0,0.51884742]
[1641059803158,1.48540961,47764.0,47763.0,0.51884742]
[1641059803361,1.46550184,47764.0,47763.0,0.51384742]
[1641059804204,1.52568087,47764.0,47763.0,0.51384742]
[1641059804406,1.50693541,47764.0,47763.0,0.51384742]
[1641059805207,1.52666486,47764.0,47763.0,0.51384742]
[1641059805405,1.50838583,47764.0,47763.0,0.51384742]
[1641059806305,1.52913549,47764.0,47763.0,0.51384742]
[1641059806506,1.50940604,47764.0,47763.0,0.51384742]
[1641059807108,1.50940604,47764.0,47763.0,0.09486942]
[1641059807351,1.50744436,47764.0,47763.0,0.09486942]
[1641059808747,1.52603798,47764.0,47763.0,0.09486942]
[1641059809051,1.52603798,47764.0,47749.0,0.32611044]
[1641059809052,0.00121056,47747.0,47746.0,0.71403455]
[1641059809248,0.00121056,47747.0,47742.0,0.71403455]
[1641059809846,0.23539683,47744.0,47742.0,0.71403455]
[1641059810047,0.05239,47743.0,47742.0,0.71403455]
[1641059810477,1.2873491,47740.0,47733.0,0.87952455]
[1641059810653,1.2873491,47740.0,47724.0,0.82373568]
[1641059810654,1.0,47732.0,47724.0,0.82373568]
[1641059810851,1.33821976,47728.0,47724.0,0.82373568]
[1641059811102,1.33821976,47728.0,47704.0,0.00065263]
[1641059811103,0.336923,47725.0,47716.0,0.82373568]
[1641059811302,0.00122493,47717.0,47716.0,0.80373568]
[1641059811503,0.00122493,47717.0,47716.0,0.79873568]
[1641059811504,0.09554526,47717.0,47716.0,0.79873568]
[1641059811700,0.14554526,47717.0,47716.0,0.79921039]
[1641059811901,0.19554526,47717.0,47716.0,0.79921039]
[1641059812102,0.24796626,47717.0,47716.0,0.00047471]
[1641059812303,0.58488926,47717.0,47716.0,0.00047471]
[1641059812504,0.052423,47716.0,47713.0,0.00052948]
[1641059812806,0.38818168,47714.0,47713.0,0.00052948]
[1641059813002,0.74019613,47714.0,47713.0,0.00052948]
[1641059813201,0.53818168,47714.0,47713.0,0.00052948]
[1641059813403,0.64303068,47714.0,47713.0,0.00052948]
[1641059813805,0.64303068,47714.0,47713.0,0.62927948]
[1641059814203,0.66486418,47714.0,47713.0,0.62927948]
[1641059814405,0.4636055,47714.0,47713.0,0.62927948]
[1641059814762,0.1266825,47714.0,47713.0,0.62927948]
[1641059815357,0.0218335,47714.0,47713.0,0.62927948]
[1641059815954,0.2286658,47714.0,47713.0,0.62927948]
[1641059816554,0.21,47714.0,47713.0,0.62927948]
[1641059816753,0.314817,47714.0,47713.0,0.62927948]
[1641059817160,0.65174,47714.0,47713.0,0.62927948]
[1641059817358,0.70174,47714.0,47713.0,0.62927948]
[1641059818258,0.722114,47714.0,47713.0,0.62927948]
[1641059818997,0.672114,47714.0,47713.0,0.62927948]
[1641059819199,0.230374,47714.0,47713.0,0.62927948]
[1641059819499,0.23142723,47714.0,47713.0,0.62927948]
[1641059819698,0.56835023,47714.0,47713.0,0.62927948]
[1641059820304,0.67317023,47714.0,47713.0,0.62927948]
[1641059820499,0.651743,47714.0,47713.0,0.62927948]
[1641059821001,0.751743,47714.0,47713.0,0.62927948]
[1641059821201,0.851743,47714.0,47713.0,0.62927948]
[1641059821399,0.87064215,47714.0,47713.0,0.62927948]
[1641059821798,1.47818026,47714.0,47713.0,0.62927948]
[1641059822251,1.49816228,47714.0,47713.0,0.62927948]
[1641059822446,0.67172502,47714.0,47713.0,0.62927948]
[1641059823247,0.77172502,47714.0,47713.0,0.62927948]
[1641059823449,0.69249795,47714.0,47713.0,0.62927948]
[1641059823646,0.67251593,47714.0,47713.0,0.62927948]
[1641059824449,0.69245379,47714.0,47713.0,0.62927948]
[1641059824647,0.82168086,47714.0,47713.0,0.62927948]
[1641059824847,1.3117845,47714.0,47713.0,0.62927948]
[1641059825048,0.9748615,47714.0,47713.0,0.62927948]
[1641059825251,0.9968451,47714.0,47713.0,0.62927948]
[1641059825449,0.2843926,47714.0,47713.0,0.62927948]
[1641059826596,0.262409,47714.0,47713.0,0.62927948]
[1641059826998,0.649332,47714.0,47713.0,0.62927948]
[1641059827199,0.699332,47714.0,47713.0,0.62927948]
[1641059827400,0.749332,47714.0,47713.0,0.62927948]
[1641059827599,0.599332,47714.0,47713.0,0.62927948]
[1641059827999,1.29184664,47714.0,47713.0,0.62927948]
[1641059828399,1.31374429,47714.0,47713.0,0.62927948]
[1641059828602,1.19629305,47714.0,47713.0,0.62927948]
[1641059828799,1.19591275,47714.0,47713.0,0.90972313]
[1641059829002,0.62084935,47714.0,47713.0,0.90972313]
[1641059829403,0.64167738,47714.0,47713.0,0.90972313]
[1641059829601,0.61477973,47714.0,47713.0,0.62917948]
[1641059829846,0.60977973,47714.0,47713.0,0.62917948]
[1641059830252,0.70977973,47714.0,47713.0,0.62917948]
[1641059830446,0.82845874,47714.0,47713.0,0.62917948]
[1641059830647,0.80763071,47714.0,47713.0,0.62917948]
[1641059831249,1.38269411,47714.0,47713.0,0.62917948]
[1641059831448,1.20434063,47714.0,47713.0,0.62917948]
[1641059831647,0.81059822,47714.0,47713.0,0.62917948]
[1641059832247,0.61059822,47714.0,47713.0,0.62917948]
[1641059832447,1.40500305,47714.0,47713.0,0.62917948]
[1641059832647,1.18335653,47714.0,47713.0,0.91538666]
[1641059832847,0.79402453,47714.0,47713.0,0.91538666]
[1641059833049,0.79402453,47714.0,47713.0,1.06538666]
[1641059833347,0.22154488,47714.0,47713.0,1.06538666]
[1641059833589,0.22007488,47714.0,47713.0,1.06538666]
[1641059834195,0.57247965,47718.0,47714.0,0.27992512]
[1641059834391,0.01840731,47718.0,47715.0,0.88185607]
[1641059834590,0.01840731,47718.0,47716.0,0.30347676]
[1641059834791,0.01840731,47718.0,47717.0,1.02535709]
[1641059834990,0.01840731,47718.0,47717.0,1.34286038]
[1641059835490,0.01840731,47718.0,47717.0,0.94621329]
[1641059835691,0.0524,47720.0,47717.0,0.94621329]
[1641059836091,0.0524,47720.0,47718.0,0.00033819]
[1641059836293,0.0524,47720.0,47719.0,0.62868]
[1641059836691,0.2624,47720.0,47719.0,0.62899993]
[1641059837351,0.2624,47720.0,47719.0,0.90773386]
[1641059837552,0.21,47720.0,47719.0,0.90963218]
[1641059838151,0.21,47720.0,47719.0,0.62899993]
[1641059839353,0.314809,47720.0,47719.0,0.62899993]
[1641059839954,0.21,47720.0,47719.0,0.62899993]
[1641059840555,0.28023872,47720.0,47719.0,0.62899993]
[1641059840755,0.33264272,47720.0,47719.0,0.62899993]
[1641059841598,0.35136505,47720.0,47719.0,0.62899993]
[1641059841793,0.33112633,47720.0,47719.0,0.62899993]
[1641059841993,0.43112633,47720.0,47719.0,0.62899993]
[1641059842193,0.53112633,47720.0,47719.0,0.62899993]
[1641059842495,0.54957831,47720.0,47719.0,0.62899993]
[1641059842693,0.33085598,47720.0,47719.0,0.62899993]
[1641059843094,0.33085598,47720.0,47719.0,0.57854077]
[1641059843497,0.35181698,47720.0,47719.0,0.57854077]
[1641059843694,0.333365,47720.0,47719.0,0.57854077]
[1641059845153,0.35459562,47720.0,47719.0,0.57854077]
[1641059845355,0.33363462,47720.0,47719.0,0.57854077]
[1641059846254,0.35219059,47720.0,47719.0,0.57854077]
[1641059846454,0.33095997,47720.0,47719.0,0.57854077]
[1641059846658,0.35227661,47720.0,47719.0,0.57854077]
[1641059847656,0.37143632,47720.0,47719.0,0.57854077]
[1641059847855,0.33156371,47720.0,47719.0,0.57854077]
[1641059848502,0.35051148,47720.0,47719.0,0.57854077]
[1641059848701,0.33135177,47720.0,47719.0,0.57854077]
[1641059849606,0.55050791,47720.0,47719.0,0.57854077]
[1641059849803,0.86848314,47720.0,47719.0,0.57854077]
[1641059850403,2.5165861,47720.0,47719.0,0.15918977]
[1641059850603,1.54021024,47720.0,47719.0,0.15918977]
[1641059850803,1.16326088,47720.0,47719.0,0.15918977]
[1641059851004,0.26152075,47717.0,47714.0,0.27992512]
[1641059851204,0.336923,47715.0,47714.0,0.27992512]
[1641059851406,0.378823,47715.0,47714.0,0.27992512]
[1641059851606,0.478823,47715.0,47714.0,0.27992512]
[1641059851810,0.378823,47715.0,47714.0,0.27992512]
[1641059852006,0.478823,47715.0,47714.0,0.27992512]
[1641059852452,0.478823,47715.0,47714.0,0.27492512]
[1641059852749,0.49847245,47715.0,47714.0,0.90366512]
[1641059853651,0.51904285,47715.0,47714.0,0.90366512]
[1641059853851,1.69101212,47715.0,47714.0,0.90366512]
[1641059854250,0.5046031,47715.0,47714.0,0.90366512]
[1641059854452,0.50587937,47715.0,47714.0,0.48427512]
[1641059854650,0.57741284,47715.0,47714.0,0.48427512]
[1641059854950,0.57741284,47715.0,47714.0,0.46427512]
[1641059855352,1.72692769,47715.0,47714.0,0.46427512]
[1641059855552,1.74888979,47715.0,47714.0,0.46427512]
[1641059856698,1.77003574,47715.0,47714.0,0.46427512]
[1641059856898,1.74807364,47715.0,47714.0,0.46427512]
[1641059857501,1.79807364,47715.0,47714.0,0.46427512]
[1641059857699,1.81915552,47715.0,47714.0,0.46427512]
[1641059857902,1.79800957,47715.0,47714.0,0.46427512]
[1641059858602,1.81948551,47715.0,47714.0,0.46427512]
[1641059858801,1.79319393,47715.0,47714.0,0.46427512]
[1641059859607,1.81036792,47715.0,47714.0,0.46427512]
[1641059859856,1.74699198,47715.0,47714.0,0.46427512]
[1641059860255,1.59699198,47715.0,47714.0,0.46427512]
[1641059860655,1.61829229,47715.0,47714.0,0.46427512]
[1641059860855,1.59984203,47715.0,47714.0,0.46427512]
[1641059861258,0.40822331,47715.0,47714.0,0.46427512]
[1641059861459,1.20670226,47715.0,47714.0,0.46427512]
[1641059861655,1.22798799,47715.0,47714.0,0.46427512]
[1641059861856,1.20668768,47715.0,47714.0,0.46427512]
[1641059862055,0.50820873,47715.0,47714.0,0.46427512]
[1641059862259,0.71546573,47715.0,47714.0,0.46427512]
[1641059862657,1.92865244,47715.0,47714.0,0.46427512]
[1641059862869,1.90736671,47715.0,47714.0,0.46427512]
[1641059864115,1.80736671,47715.0,47714.0,0.46427512]
[1641059864315,1.82778577,47715.0,47714.0,0.46427512]
[1641059864515,1.80622946,47715.0,47714.0,0.46427512]
[1641059864716,1.82627783,47715.0,47714.0,0.46427512]
[1641059864920,1.80585877,47715.0,47714.0,0.46427512]
[1641059865520,1.41419478,47715.0,47714.0,0.46427512]
[1641059865721,1.4335081,47715.0,47714.0,0.46427512]
[1641059866122,1.20463274,47715.0,47714.0,0.46427512]
[1641059866524,1.15463274,47715.0,47714.0,0.46427512]
[1641059866726,0.58354169,47715.0,47714.0,0.46427512]
[1641059866923,0.63354169,47715.0,47714.0,0.46427512]
[1641059867124,0.80478881,47715.0,47714.0,0.46427512]
[1641059867351,1.39590978,47715.0,47714.0,0.46427512]
[1641059867554,1.35654809,47715.0,47714.0,0.46427512]
[1641059867753,1.37809512,47715.0,47714.0,0.46427512]
[1641059867950,0.78697415,47715.0,47714.0,0.46427512]
[1641059868451,1.4022834,47715.0,47714.0,0.46427512]
[1641059868650,1.37078104,47715.0,47714.0,0.46427512]
[1641059868849,1.34923401,47715.0,47714.0,0.46427512]
[1641059869251,0.66392476,47715.0,47714.0,0.46427512]
[1641059869850,0.68278868,47715.0,47714.0,0.46427512]
[1641059870054,0.66429104,47715.0,47714.0,0.46427512]
[1641059870749,0.68563749,47715.0,47714.0,0.46427512]
[1641059871591,0.69542712,47715.0,47714.0,0.46427512]
[1641059871797,0.7143639,47715.0,47714.0,0.46427512]
[1641059871992,1.39967315,47715.0,47714.0,0.4205844]
[1641059872793,1.42157144,47715.0,47714.0,0.4205844]
[1641059872993,1.40263466,47715.0,47714.0,0.4205844]
[1641059873793,1.42068909,47715.0,47714.0,0.4205844]
[1641059874094,1.3987908,47715.0,47714.0,0.4205844]
[1641059874759,1.41918712,47715.0,47714.0,0.4205844]
[1641059874954,1.40113269,47715.0,47714.0,0.4205844]
[1641059875354,1.24988557,47715.0,47714.0,0.4205844]
[1641059875753,0.58595802,47715.0,47714.0,0.4205844]
[1641059875954,0.5655617,47715.0,47714.0,0.4205844]
[1641059876455,0.5655617,47715.0,47714.0,0.70979917]
[1641059876857,0.58573881,47715.0,47714.0,0.70979917]
[1641059877155,0.56435711,47715.0,47714.0,0.4205844]
[1641059877758,0.58479649,47715.0,47714.0,0.69882495]
[1641059877957,0.56461938,47715.0,47714.0,0.4205844]
[1641059878155,0.56461938,47715.0,47714.0,0.69823958]
[1641059878790,0.58385912,47715.0,47714.0,0.69823958]
[1641059878989,0.56341974,47715.0,47714.0,0.69823958]
[1641059879690,0.56341974,47715.0,47714.0,0.69048997]
[1641059879890,0.58328045,47715.0,47714.0,0.68730365]
[1641059880088,0.56404071,47715.0,47714.0,0.68730365]
[1641059880892,0.58412384,47715.0,47714.0,0.40964847]
[1641059881092,0.56426313,47715.0,47714.0,0.69051291]
[1641059882090,0.56426313,47715.0,47714.0,0.40964847]
[1641059882543,0.58608686,47715.0,47714.0,0.40964847]
[1641059882745,0.56600373,47715.0,47714.0,0.40964847]
[1641059882945,0.56461096,47715.0,47714.0,0.71306581]
[1641059883345,0.104836,47716.0,47714.0,0.71306581]
[1641059883346,0.104836,47716.0,47714.0,1.01306581]
[1641059883545,1.355361,47739.0,47716.0,0.77]
[1641059883546,0.68530925,47721.0,47716.0,0.77]
[1641059883745,0.68530925,47721.0,47720.0,0.93129262]
[1641059883945,0.80898338,47723.0,47720.0,0.93129262]
[1641059883946,0.80898338,47723.0,47720.0,2.5472121]
[1641059884147,0.11167251,47733.0,47723.0,0.61]
[1641059884453,0.11167251,47733.0,47732.0,0.00124995]
[1641059884644,0.11167251,47733.0,47732.0,0.99884995]
[1641059884844,0.11192812,47733.0,47732.0,1.25582611]
[1641059885244,0.11192812,47733.0,47732.0,1.59268059]
[1641059885450,1.09104328,47741.0,47734.0,0.51281756]
[1641059885646,1.03866328,47741.0,47737.0,0.07622525]
[1641059885844,1.03866328,47741.0,47738.0,1.71329248]
[1641059886092,0.0004,47741.0,47738.0,1.376438]
[1641059886293,0.00040954,47739.0,47738.0,1.376438]
[1641059886897,0.00040954,47739.0,47738.0,1.39514251]
[1641059888098,0.04040954,47739.0,47738.0,1.39514251]
[1641059888497,0.04040954,47739.0,47738.0,1.4133905]
[1641059888795,0.04040954,47739.0,47738.0,1.39468599]
[1641059888996,0.04040954,47739.0,47738.0,1.81114001]
[1641059889195,0.04040954,47739.0,47738.0,1.79289202]
[1641059889868,0.04040954,47739.0,47738.0,1.81339043]
[1641059890068,0.04040954,47739.0,47738.0,1.79502968]
[1641059890771,0.04040954,47739.0,47738.0,1.01801841]
[1641059890968,0.04040954,47739.0,47738.0,1.03826448]
[1641059891167,0.04040954,47739.0,47738.0,1.01776607]
[1641059891371,0.04040954,47739.0,47738.0,0.86776607]
[1641059891570,0.09279154,47739.0,47738.0,0.86776607]
[1641059891972,0.09279154,47739.0,47738.0,0.88863081]
[1641059892171,0.09279154,47739.0,47738.0,0.86838474]
[1641059892971,0.09279154,47739.0,47738.0,0.88885747]
[1641059893172,0.09279154,47739.0,47738.0,0.86799273]
[1641059894597,0.09279154,47739.0,47738.0,0.88748682]
[1641059895399,0.09279154,47739.0,47738.0,1.13711007]
[1641059895599,0.09279154,47739.0,47738.0,1.15795017]
[1641059895801,0.09279154,47739.0,47738.0,0.86757641]
[1641059896201,0.09279154,47739.0,47738.0,0.75757641]
[1641059896600,0.09279154,47739.0,47738.0,0.77846489]
[1641059896800,0.09279154,47739.0,47738.0,0.75840848]
[1641059897000,0.09279154,47739.0,47738.0,0.7778933]
[1641059897266,0.09279154,47739.0,47738.0,0.75700482]
[1641059898059,0.09279154,47739.0,47738.0,0.77572723]
[1641059898259,0.09279154,47739.0,47738.0,0.75624241]
[1641059899072,0.09279154,47739.0,47738.0,0.77713931]
[1641059899264,0.09279154,47739.0,47738.0,0.7584169]
[1641059899661,0.04040954,47739.0,47738.0,1.04680355]
[1641059900060,0.04040954,47739.0,47738.0,1.06680611]
[1641059900260,0.04040954,47739.0,47738.0,1.04590921]
[1641059901100,0.04040954,47739.0,47738.0,1.06692816]
[1641059901308,0.04040954,47739.0,47738.0,1.0469256]
[1641059901500,0.09279054,47739.0,47738.0,1.0469256]
[1641059902000,0.04040954,47739.0,47738.0,1.0469256]
[1641059902203,0.04040954,47739.0,47738.0,1.06796159]
[1641059902402,0.04040954,47739.0,47738.0,1.04694264]
[1641059903102,0.04040954,47739.0,47738.0,1.0680578]
[1641059904102,0.04040954,47739.0,47738.0,1.08626527]
[1641059904303,0.04040954,47739.0,47738.0,1.04411412]
[1641059904504,0.04040954,47739.0,47738.0,0.75572747]
[1641059905149,0.04040954,47739.0,47738.0,1.05873756]
[1641059905550,0.04040954,47739.0,47738.0,1.39575556]
[1641059905749,0.04040954,47739.0,47738.0,1.41661851]
[1641059905950,0.04040954,47739.0,47738.0,1.39841104]
[1641059906150,0.04040954,47739.0,47738.0,1.41825724]
[1641059907053,0.04040954,47739.0,47738.0,1.43995662]
[1641059907251,0.04040954,47739.0,47738.0,1.39924747]
[1641059907451,0.04040954,47739.0,47738.0,1.06222947]
[1641059908052,0.04040954,47739.0,47738.0,1.54514279]
[1641059908253,0.04040954,47739.0,47738.0,1.41904439]
[1641059908491,0.09040954,47739.0,47738.0,1.39734501]
[1641059909099,0.09040954,47739.0,47738.0,1.41844738]
[1641059909295,0.09040954,47739.0,47738.0,1.39865046]
[1641059909798,0.09040954,47739.0,47738.0,1.54865046]
[1641059910199,0.09040954,47739.0,47738.0,1.56688401]
[1641059910397,0.09040954,47739.0,47738.0,1.54578164]
[1641059911197,0.09040954,47739.0,47738.0,1.5644222]
[1641059911400,0.09040954,47739.0,47738.0,1.54618865]
[1641059912252,0.09040954,47739.0,47738.0,1.56676465]
[1641059913147,0.09040954,47739.0,47738.0,1.58709722]
[1641059913348,0.09040954,47739.0,47738.0,1.54788066]
[1641059913548,0.09040954,47739.0,47738.0,2.25941713]
[1641059914348,0.09040954,47739.0,47738.0,2.27927861]
[1641059914547,0.09040954,47739.0,47738.0,2.25894604]
[1641059915149,0.09040954,47739.0,47738.0,1.56651373]
[1641059915349,0.09040954,47739.0,47738.0,1.54665225]
[1641059915549,0.0004,47742.0,47740.0,0.33822371]
[1641059915748,0.0004,47742.0,47741.0,3.04836636]
[1641059916200,0.0004,47742.0,47741.0,3.14836636]
[1641059916500,0.0004,47742.0,47741.0,3.42734572]
[1641059917302,0.0004,47742.0,47741.0,2.30634572]
[1641059917700,0.0004,47742.0,47741.0,3.44927067]
[1641059918201,0.0004,47742.0,47741.0,3.46930257]
[1641059918406,0.0004,47742.0,47741.0,3.44737762]
[1641059918601,0.0404,47742.0,47741.0,3.44737762]
[1641059918802,0.0404,47742.0,47741.0,2.12637762]
[1641059919002,0.0404,47742.0,47741.0,1.84739826]
[1641059919205,0.0904,47742.0,47741.0,1.86930443]
[1641059919402,0.0904,47742.0,47741.0,1.84927253]
[1641059919847,0.0904,47742.0,47741.0,1.94927253]
[1641059920047,0.0504,47742.0,47741.0,1.84927253]
[1641059920245,0.0504,47742.0,47741.0,1.86927789]
[1641059920445,0.0504,47742.0,47741.0,1.84737172]
[1641059921248,0.0504,47742.0,47741.0,1.96573559]
[1641059921446,0.0504,47742.0,47741.0,1.94573023]
[1641059921644,0.0504,47742.0,47741.0,2.04573023]
[1641059921852,0.0504,47742.0,47741.0,1.94573023]
[1641059922050,0.0504,47742.0,47741.0,3.06673023]
[1641059922245,0.0504,47742.0,47741.0,3.08793093]
[1641059922445,0.0504,47742.0,47741.0,3.06956706]
[1641059923247,0.0504,47742.0,47741.0,3.09113209]
[1641059923496,0.0003,47743.0,47742.0,1.337018]
[1641059923497,0.0002,47743.0,47742.0,1.337018]
[1641059923697,0.0002,47743.0,47742.0,3.98993669]
[1641059923899,0.00027304,47743.0,47742.0,4.13993669]
[1641059924298,0.00027304,47743.0,47742.0,4.1591305]
[1641059924501,0.00027304,47743.0,47742.0,3.1591305]
[1641059925102,0.00920934,47751.0,47743.0,1.0]
[1641059925103,0.02770604,47750.0,47743.0,1.0]
[1641059925402,0.02770604,47750.0,47747.0,0.32805642]
[1641059925603,0.02770604,47750.0,47748.0,1.294408]
[1641059925802,0.02770604,47750.0,47749.0,0.16518576]
[1641059926002,0.02770604,47750.0,47749.0,1.45958376]
[1641059926202,0.02783384,47750.0,47749.0,1.45958376]
[1641059927258,0.02783384,47750.0,47749.0,1.48087374]
[1641059928054,0.0003,47762.0,47756.0,0.052262]
[1641059928255,0.00940917,47759.0,47756.0,1.54690404]
[1641059928555,0.00940917,47759.0,47756.0,1.63846]
[1641059928753,0.00940917,47759.0,47756.0,1.53846]
[1641059929356,0.00940917,47759.0,47756.0,1.55720931]
[1641059930361,0.0004,47759.0,47756.0,1.5785253]
[1641059930560,0.0004,47759.0,47756.0,1.55977599]
[1641059931412,0.0004,47759.0,47756.0,1.42966489]
[1641059931712,0.0004,47759.0,47756.0,1.0294309]
[1641059932009,0.05276659,47759.0,47756.0,1.0294309]
[1641059932408,0.052663,47758.0,47756.0,1.0496167]
[1641059932610,0.105024,47758.0,47756.0,1.0297278]
[1641059934012,0.105024,47758.0,47756.0,1.04796143]
[1641059934953,0.105024,47758.0,47756.0,1.06747644]
[1641059935152,0.105024,47758.0,47756.0,1.02905701]
[1641059935353,0.105024,47758.0,47756.0,1.04906619]
[1641059935553,0.105024,47758.0,47756.0,1.02955118]
[1641059936054,0.79341515,47758.0,47756.0,1.02955118]
[1641059936254,0.74105215,47758.0,47756.0,1.02955118]
[1641059936453,0.74105215,47758.0,47756.0,1.05057309]
[1641059936655,0.74105215,47758.0,47756.0,1.03056391]
[1641059937259,0.052661,47758.0,47756.0,1.03056391]
[1641059937456,0.052661,47758.0,47756.0,1.05015368]
[1641059937657,0.63148856,47757.0,47756.0,1.02913177]
[1641059938496,0.63148856,47757.0,47756.0,1.02804172]
[1641059939197,0.0505,47757.0,47756.0,1.02804172]
[1641059939398,0.0505,47757.0,47756.0,1.049951]
[1641059939799,0.0505,47757.0,47756.0,1.03145128]
[1641059940500,0.0505,47757.0,47756.0,1.0519988]
[1641059940799,0.0505,47757.0,47756.0,1.02508952]
[1641059941401,0.0505,47757.0,47756.0,1.04644679]
[1641059941601,0.0505,47757.0,47756.0,1.02589927]
[1641059943058,0.0505,47757.0,47756.0,1.04627418]
[1641059943258,0.0505,47757.0,47756.0,1.02491691]
[1641059943459,0.0505,47757.0,47756.0,1.04671425]
[1641059943659,0.0505,47757.0,47756.0,1.02633934]
[1641059944565,0.0505,47757.0,47756.0,1.02439259]
[1641059945159,0.0505,47757.0,47756.0,1.30669032]
[1641059945360,0.0505,47757.0,47756.0,1.02439259]
[1641059945560,0.0505,47757.0,47756.0,1.02296287]
[1641059945760,0.0505,47757.0,47756.0,1.30657526]
[1641059946003,0.0505,47757.0,47756.0,1.02296287]
[1641059946403,0.0505,47757.0,47756.0,1.04367227]
[1641059946606,0.0505,47757.0,47756.0,1.0252514]
[1641059947406,0.0505,47757.0,47756.0,1.32895215]
[1641059947708,0.0505,47757.0,47756.0,1.02459211]
[1641059948109,0.0505,47757.0,47756.0,1.30802869]
[1641059948507,0.0505,47757.0,47756.0,1.32831248]
[1641059948707,0.0505,47757.0,47756.0,1.30826237]
[1641059949510,0.0505,47757.0,47756.0,1.32757124]
[1641059949786,0.0505,47757.0,47756.0,1.30728745]
[1641059950574,0.0505,47757.0,47756.0,1.32896443]
[1641059950773,0.0505,47757.0,47756.0,1.30965556]
[1641059951174,0.0505,47757.0,47756.0,1.64667356]
[1641059951374,0.0504,47757.0,47756.0,1.64667356]
[1641059951577,0.0225,47757.0,47756.0,1.66657182]
[1641059952173,0.02367333,47757.0,47756.0,1.66657182]
[1641059952376,0.02367333,47757.0,47756.0,1.62499658]
[1641059952576,0.02367333,47757.0,47756.0,1.64649185]
[1641059953514,0.02367333,47757.0,47756.0,1.66823557]
[1641059953715,0.02367333,47757.0,47756.0,1.6467403]
[1641059953916,0.02374656,47757.0,47756.0,1.6467403]
[1641059954519,0.02374656,47757.0,47756.0,1.66861842]
[1641059954721,0.02374656,47757.0,47756.0,1.6468747]
[1641059955017,0.02374656,47757.0,47756.0,1.69003776]
[1641059955217,0.0003,47758.0,47757.0,1.0]
[1641059955420,0.0003,47760.0,47757.0,2.85311476]
[1641059955721,0.0003,47765.0,47764.0,0.7451]
[1641059955918,0.0003,47765.0,47764.0,2.54040162]
[1641059956117,0.0003,47765.0,47764.0,2.69040162]
[1641059956517,0.0003,47765.0,47764.0,2.71168151]
[1641059957550,0.0003,47765.0,47764.0,2.72981829]
[1641059957751,0.0003,47765.0,47764.0,2.7085384]
[1641059958354,0.0003,47765.0,47764.0,3.8295384]
[1641059958549,0.0003,47765.0,47764.0,3.85032128]
[1641059958750,0.0003,47765.0,47764.0,3.8321845]
[1641059958952,0.0003,47765.0,47764.0,2.7111845]
[1641059959150,0.0003,47765.0,47764.0,2.5611845]
[1641059959554,0.0003,47765.0,47764.0,4.02749544]
[1641059959753,0.0003,47765.0,47764.0,4.00671256]
[1641059959959,0.0003,47765.0,47764.0,2.5599873]
[1641059960356,0.0503,47765.0,47764.0,2.5599873]
[1641059960654,0.0503,47765.0,47764.0,2.00869442]
[1641059960861,0.0503,47765.0,47764.0,3.17969442]
[1641059961116,0.0503,47765.0,47764.0,1.681364]
[1641059961318,0.0503,47765.0,47764.0,3.08979647]
[1641059961517,0.0503,47765.0,47764.0,3.10946152]
[1641059962216,0.0503,47765.0,47764.0,2.49281131]
[1641059962418,0.0503,47765.0,47764.0,2.37680126]
[1641059962618,0.0503,47765.0,47764.0,2.39731451]
[1641059962818,0.0503,47765.0,47764.0,3.11184807]
[1641059963219,0.0503,47765.0,47764.0,4.23284807]
[1641059963619,0.0503,47765.0,47764.0,4.25389767]
[1641059963819,0.0503,47765.0,47764.0,3.40330936]
[1641059964220,0.05037295,47765.0,47764.0,3.11535669]
[1641059964757,0.05037295,47765.0,47764.0,3.11116889]
[1641059965554,0.05037295,47765.0,47764.0,3.1330112]
[1641059965756,0.05037295,47765.0,47764.0,2.37770988]
[1641059965958,0.05037295,47765.0,47764.0,1.66494882]
[1641059966356,0.05017295,47765.0,47764.0,2.78594882]
[1641059966556,0.05017295,47765.0,47764.0,3.42493386]
[1641059966757,0.05017295,47765.0,47764.0,3.40309155]
[1641059966958,0.05017295,47765.0,47764.0,2.28209155]
[1641059967758,0.05017295,47765.0,47764.0,3.4239862]
[1641059967958,0.05017295,47765.0,47764.0,2.3029862]
[1641059968505,0.05017295,47765.0,47764.0,2.26160777]
[1641059968703,0.05017295,47765.0,47764.0,2.28326919]
[1641059970307,0.05017295,47765.0,47764.0,2.28170729]
[1641059970505,0.05017295,47765.0,47764.0,2.26004587]
[1641059970805,0.05017295,47765.0,47764.0,2.2613032]